[Event "Australian-ch 2018"]
[Site "Sydney"]
[Date "2018.01.11"]
[Round "10"]
[White "Nakauchi, Gene"]
[Black "Yang, Ray"]
[Result "1-0"]
[ECO "D71"]
[WhiteElo "2208"]
[BlackElo "2003"]
[Annotator "ChessBase"]
[PlyCount "71"]
[EventDate "2018.01.02"]
[EventType "tourn"]
[EventCountry "AUS"]
[SourceTitle "playchess.com"]
[Source "ChessBase"]
[SourceQuality "1"]
[TimeControl "40/5400+30:1800+30"]

1. d4 {[%emt 0:00:00]} Nf6 {[%emt 0:00:06]} 2. c4 {[%emt 0:00:00]} g6 {[%emt 0:00:06]} 3. g3 {[%emt 0:00:00]} c6 {[%emt 0:00:07]} 4. Bg2 {[%emt 0:02:38]} d5 {[%emt 0:00:08]} 5. cxd5 {[%emt 0:04:25]} cxd5 {[%emt 0:00:07]} 6. Nc3 {[%emt 0:00:21]} Bg7 {[%emt 0:00:21]} 7. Qb3 {[%emt 0:12:38]} Nc6 {[%emt 0:14:10]} 8. Be3 {[%emt 0:07:10]} Na5 {[%emt 0:04:50]} 9. Qb4 {[%emt 0:05:16]} O-O {[%emt 0:03:38]} 10. Bg5 {[%emt 0:06:29]} Nc6 {[%emt 0:02:30]} 11. Qc5 {[%emt 0:01:20]} Be6 {[%emt 0:11:01]} 12. Bxf6 {[%emt 0:03:49]} Bxf6 {[%emt 0:00:07]} 13. e3 {[%emt 0:00:42]} Rc8 {[%emt 0:00:25]} 14. Nxd5 {[%emt 0:01:35]} Bg7 {[%emt 0:05:00]} 15. Rc1 {[%emt 0:26:22]} Ne5 {[%emt 0:05:09]} 16. Qxc8 {[%emt 0:00:50]} Bxc8 {[%emt 0:01:09]} 17. Rxc8 {[%emt 0:00:08]} Qa5+ {[%emt 0:00:44]} 18. b4 {[%emt 0:08:36]} Nd3+ {[%emt 0:00:07]} 19. Ke2 {[%emt 0:00:34]} Nxb4 {[%emt 0:00:40]} 20. Rxf8+ {[%emt 0:00:42]} Kxf8 {[%emt 0:01:49]} 21. Nxb4 {[%emt 0:01:39]} Qxb4 {[%emt 0:00:09]} 22. f4 {[%emt 0:01:55]} Qc4+ {[%emt 0:00:29]} 23. Kf2 {[%emt 0:00:26]} Qxa2+ {[%emt 0:01:37]} 24. Ne2 {[%emt 0:00:04]} b5 {[%emt 0:00:42]} 25. Rc1 {[%emt 0:00:13]} Kg8 {[%emt 0:00:07]} 26. Rc8+ {[%emt 0:03:04]} Bf8 {[%emt 0:00:04]} 27. Rb8 {[%emt 0:00:21]} a6 {[%emt 0:00:09]} 28. Kf3 {[%emt 0:05:13]} e6 {[%emt 0:00:33]} 29. Nc3 {[%emt 0:00:17]} Qc4 {[%emt 0:00:55]} 30. Ne4 {[%emt 0:00:34]} Qc7 {[%emt 0:01:21]} 31. Nf6+ {[%emt 0:00:13]} Kh8 {[%emt 0:01:41]} 32. Rxf8+ {[%emt 0:00:06]} Kg7 {[%emt 0:00:05]} 33. Ne8+ {[%emt 0:00:06]} Kxf8 {[%emt 0:00:03]} 34. Nxc7 {[%emt 0:00:04]} b4 {[%emt 0:00:04]} 35. Nxa6 {[%emt 0:00:13]} b3 {[%emt 0:00:10]} 36. Ke2 {[%emt 0:00:05]} 1-0